bitfinex/quotes_SOLUSD_20241117
["timestamp","ask_amount","ask_price","bid_price","bid_amount"]
[1731869945613,4.41779,232.98,232.93,10.61784848]
[1731869947115,0.12549,232.98,232.93,14.91084848]
[1731869947418,0.12549,233.04,232.93,10.61784848]
[1731869947419,0.12549,232.99,232.93,10.61784848]
[1731869947719,0.09367462,232.98,232.89,42.79034848]
[1731869948112,0.09367462,232.98,232.89,47.08414848]
[1731869948300,0.09367462,232.98,232.91,10.61784848]
[1731869949113,4.2923,232.97,232.91,10.61784848]
[1731869949319,0.12549,232.96,232.91,10.61784848]
[1731869951026,0.25098,233.01,232.93,10.61784848]
[1731869951211,4.2918,233.0,232.93,14.91084848]
[1731869951415,0.09367462,232.99,232.91,25.64484848]
[1731869952321,0.21916462,232.99,232.89,36.34944848]
[1731869953327,0.12549,232.97,232.89,36.34944848]
[1731869954419,4.41789,232.97,232.89,36.34944848]
[1731869954995,4.41789,232.97,232.86,10.7356]
[1731869954996,0.21916462,232.96,232.86,10.7356]
[1731869955200,0.09367462,232.94,232.86,10.7356]
[1731869955917,0.21916462,232.94,232.86,10.7356]
[1731869956231,0.12549,232.93,232.9,10.61784848]
[1731869957717,0.12549,232.93,232.88,10.61784848]
[1731869958032,4.41869,232.93,232.88,10.61784848]
[1731869958208,4.41869,232.93,232.86,21.35344848]
[1731869959628,4.41869,232.93,232.86,25.64784848]
[1731869960299,4.41869,232.93,232.87,6.79828965]
[1731869960516,4.41869,232.93,232.86,10.7356]
[1731869960719,4.41869,232.93,232.86,17.53388965]
[1731869961420,4.41869,232.93,232.86,21.82828965]
[1731869962629,6.6085659,233.03,232.92,6.79828965]
[1731869962800,0.3762,233.06,232.97,23.776884]
[1731869963434,0.3762,233.06,232.96,6.79828965]
[1731869963925,4.38467462,233.05,232.96,6.79828965]
[1731869964327,4.38467462,233.05,232.96,10.61375232]
[1731869964708,0.12549,233.04,232.96,10.61375232]
[1731869965116,0.12549,233.02,232.96,10.61375232]
[1731869965720,0.09367462,233.01,232.94,10.61375232]
[1731869966607,4.2918,233.0,232.94,10.61375232]
[1731869966807,0.12549,232.99,232.94,10.61375232]
[1731869967026,4.41639,233.05,232.96,10.61375232]
[1731869967323,0.12549,233.04,232.96,10.61375232]
[1731869968069,0.12549,233.04,232.98,10.61375232]
[1731869968332,0.3762,233.06,232.95,23.776884]
[1731869968333,0.3762,233.06,233.0,10.61375232]
[1731869969001,0.3762,233.06,233.02,10.61375232]
[1731869971317,0.21916462,233.05,232.98,10.61375232]
[1731869972516,4.51016462,233.05,232.98,10.61375232]
[1731869974937,4.41649,233.05,232.98,10.61375232]
[1731869975139,0.3762,233.06,233.02,10.61375232]
[1731869979143,0.3762,233.06,233.0,10.61375232]
[1731869979319,0.21916462,233.05,232.98,10.61375232]
[1731869980017,0.21916462,233.02,232.92,22.9004]
[1731869980234,0.09367462,233.0,232.93,10.61375232]
[1731869981241,0.12549,232.99,232.93,10.61375232]
[1731869983431,0.12549,232.99,232.93,14.90675232]
[1731869986451,0.34465462,232.96,232.86,10.736]
[1731869986753,0.25098,232.96,232.86,17.5307602]
[1731869987132,0.12549,232.96,232.88,6.7947602]
[1731869987325,0.12549,232.96,232.9,6.7947602]
[1731869988143,0.12549,232.96,232.88,11.0886602]
[1731869988450,4.41809,232.96,232.88,11.0886602]
[1731869990943,4.41809,232.96,232.88,10.5886602]
[1731869991446,4.41809,232.96,232.9,6.7947602]
[1731869992037,4.41809,232.96,232.88,6.7947602]
[1731869992251,0.09367462,232.95,232.86,17.5307602]
[1731869992464,0.09367462,232.95,232.88,6.7947602]
[1731869992659,0.12549,232.94,232.88,6.7947602]
[1731869993325,0.12549,232.94,232.9,6.7947602]
[1731869993530,0.12549,232.96,232.9,6.7947602]
[1731869994528,4.41819,232.96,232.9,6.7947602]
[1731869995730,4.41819,232.96,232.88,6.7947602]
[1731869997343,0.12549,232.93,232.87,10.7356]
[1731869997950,0.12549,232.93,232.81,21.4765]
[1731869998247,0.12549,232.93,232.84,30.5716442]
[1731869999039,0.12549,232.91,232.84,34.8663442]
[1731869999864,0.12549,232.89,232.79,6.7947602]
[1731870000362,0.34465462,232.91,232.79,6.7947602]
[1731870000862,4.2936,232.9,232.79,11.0902602]
[1731870001038,0.12549,232.89,232.83,6.7947602]
[1731870001238,0.12549,232.89,232.81,6.7947602]
[1731870001443,0.12549,232.89,232.79,15.0347]
[1731870001444,0.12549,232.89,232.79,21.8294602]
[1731870002456,4.2936,232.9,232.72,27.5923602]
[1731870002457,0.09367462,232.84,232.72,27.5923602]
[1731870002859,0.12549,232.83,232.72,23.2955602]
[1731870003157,0.21916462,232.84,232.72,23.2955602]
[1731870003158,0.09367462,232.8,232.72,23.2955602]
[1731870003352,0.09367462,232.78,232.67,16.0504]
[1731870003568,0.09367462,232.76,232.67,22.8451602]
[1731870003862,4.2951,232.82,232.71,6.7947602]
[1731870004057,0.12549,232.81,232.73,6.7947602]
[1731870004756,0.21916462,232.78,232.67,37.8877602]
[1731870004968,0.12549,232.75,232.67,37.8877602]
[1731870005147,0.12549,232.75,232.67,33.5899602]
[1731870005339,0.12549,232.75,232.67,16.0504]
[1731870005761,0.12549,232.75,232.64,6.0244]
[1731870005762,0.09367462,232.74,232.64,6.0244]
[1731870006466,0.09367462,232.7,232.61,10.7471]
[1731870006655,0.09367462,232.7,232.61,21.39521359]
[1731870007151,4.42269,232.71,232.63,10.64811359]
[1731870007345,0.12549,232.69,232.61,21.39521359]
[1731870007551,0.12549,232.69,232.61,10.64811359]
[1731870009267,0.12549,232.74,232.65,10.64811359]
[1731870009462,0.25098,232.74,232.65,10.64811359]
[1731870009770,4.2964,232.75,232.69,10.64811359]
[1731870009969,4.2964,232.75,232.71,10.64811359]
[1731870010263,4.2955,232.8,232.71,10.64811359]
[1731870010444,4.2955,232.8,232.73,10.64811359]
[1731870011358,4.38857462,232.83,232.75,10.64811359]
[1731870011561,4.2949,232.83,232.75,10.64811359]
[1731870012363,0.09367462,232.82,232.71,10.64811359]
[1731870012872,0.12549,232.82,232.75,10.64811359]
[1731870013173,0.21916462,232.82,232.75,10.64811359]
[1731870013472,0.12549,232.8,232.75,10.64811359]
[1731870013768,0.12549,232.8,232.77,10.64811359]
[1731870014175,4.2938,232.89,232.79,10.64811359]
[1731870014669,0.09367462,232.88,232.77,10.64811359]
[1731870014967,4.2938,232.89,232.79,10.64811359]
[1731870015267,0.09367462,232.88,232.79,10.64811359]
[1731870015658,0.09367462,232.86,232.75,10.64811359]
[1731870015865,0.09367462,232.86,232.73,10.64811359]
[1731870016043,0.34465462,232.86,232.73,10.64811359]
[1731870016250,0.34465462,232.86,232.71,10.64811359]
[1731870016459,20.34465462,232.86,232.71,14.94521359]
[1731870016663,20.34465462,232.86,232.71,10.64811359]
[1731870017265,0.1,232.84,232.68,22.7354]
[1731870017462,24.12153862,232.83,232.67,10.64811359]
[1731870017964,0.25098,232.81,232.71,10.64811359]
[1731870018282,0.09367462,232.8,232.71,10.64811359]
[1731870018879,0.21916462,232.78,232.71,10.64811359]
[1731870019084,0.12549,232.81,232.71,10.64811359]
[1731870019383,0.12549,232.78,232.71,10.64811359]
[1731870020177,0.12549,232.78,232.71,14.94521359]
[1731870022075,0.25098,232.84,232.75,10.64811359]
[1731870022457,4.2936,232.9,232.79,10.64811359]
[1731870022668,0.1,233.01,232.84,10.64811359]
[1731870023171,0.19367462,233.0,232.84,10.64811359]
[1731870023770,0.21916462,232.95,232.84,10.64811359]
[1731870023985,0.12549,232.95,232.86,10.64811359]
[1731870024160,0.12549,232.95,232.82,10.64811359]
[1731870025578,0.09367462,232.91,232.82,10.64811359]
[1731870025881,0.12549,232.92,232.82,10.64811359]
[1731870026191,0.09367462,232.87,232.75,22.5098]
[1731870026483,0.12549,232.84,232.7,10.7433]
[1731870027278,0.12549,232.84,232.71,10.64811359]
[1731870027476,0.25098,232.82,232.72,4.297]
[1731870028059,0.25098,232.82,232.71,10.64811359]
[1731870028387,0.25098,232.82,232.71,14.94521359]
[1731870028779,0.25098,232.82,232.73,10.64811359]
[1731870029190,0.25098,232.82,232.66,4.2979]
[1731870029376,15.0336,232.81,232.65,15.0439]
[1731870029566,0.25098,232.8,232.68,10.64811359]
[1731870030481,0.25098,232.78,232.68,10.64811359]
[1731870031482,0.12549,232.76,232.68,10.64811359]
[1731870032479,0.12549,232.76,232.66,14.94601359]
[1731870032678,4.2964,232.75,232.66,14.94601359]
[1731870033976,4.2964,232.75,232.64,10.64811359]
[1731870033977,0.09367462,232.72,232.64,10.64811359]
[1731870034187,0.21916462,232.72,232.64,10.64811359]
[1731870035662,0.21916462,232.7,232.61,26.91111359]
[1731870035864,0.21916462,232.7,232.61,10.64811359]
[1731870036070,4.2975,232.69,232.61,10.64811359]
[1731870038091,4.2975,232.69,232.63,10.64811359]
[1731870038396,0.21916462,232.7,232.63,10.64811359]
[1731870038686,4.51656462,232.7,232.63,10.64811359]
[1731870038894,0.34465462,232.69,232.61,10.64811359]
[1731870039186,0.34465462,232.69,232.57,10.64811359]
[1731870039391,24.22153862,232.67,232.51,10.64811359]
[1731870039594,0.09367462,232.65,232.51,10.64811359]
[1731870039765,24.12153862,232.65,232.51,10.64811359]
[1731870040361,24.12153862,232.65,232.5,10.7524]
[1731870040592,24.12153862,232.65,232.51,10.64811359]
[1731870041396,0.34465462,232.65,232.55,10.64811359]
[1731870041692,0.09367462,232.62,232.55,10.64811359]
[1731870041894,4.2982,232.66,232.59,10.64811359]
[1731870042185,4.2978,232.68,232.61,10.64811359]
[1731870042389,0.09367462,232.67,232.5,15.0534]
[1731870042598,0.09367462,232.67,232.55,10.64811359]
[1731870043269,24.12153862,232.67,232.52,10.64811359]
[1731870043469,0.34465462,232.65,232.52,10.64811359]
[1731870043892,0.34465462,232.65,232.52,14.94871359]
[1731870044969,0.21916462,232.63,232.52,10.64811359]
[1731870045288,0.12549,232.62,232.52,10.64811359]
[1731870046900,0.34465462,232.6,232.51,4.3008]
[1731870047771,0.21916462,232.58,232.51,4.3008]
[1731870048406,4.54928,232.65,232.51,14.94891359]
[1731870048882,0.09367462,232.64,232.51,4.3008]
[1731870049571,0.21916462,232.62,232.51,4.3008]
[1731870049776,0.34465462,232.62,232.51,4.3008]
[1731870050792,0.21916462,232.6,232.51,15.053]
[1731870051304,0.09367462,232.58,232.49,0.1017129]
[1731870051478,0.21916462,232.56,232.49,0.1017129]
[1731870052890,4.51926462,232.56,232.49,0.1017129]
[1731870053099,4.51926462,232.56,232.49,4.4028129]
[1731870055280,4.51926462,232.56,232.49,0.1017129]
[1731870058005,0.12549,232.57,232.52,10.64811359]
[1731870059084,4.2988,232.62,232.52,14.94871359]
[1731870059294,0.25098,232.61,232.52,14.94871359]
[1731870060488,0.12549,232.59,232.52,14.94871359]
[1731870060911,0.25098,232.61,232.52,14.94871359]
[1731870060912,0.12549,232.61,232.58,10.64811359]
[1731870061092,4.2988,232.68,232.52,15.0523]
[1731870061093,4.2977,232.68,232.6,10.64811359]
[1731870061294,0.09367462,232.67,232.61,10.64811359]
[1731870062398,0.09367462,232.63,232.53,10.64811359]
[1731870062589,0.12549,232.62,232.53,10.64811359]
[1731870062785,0.12549,232.62,232.51,4.3007]
[1731870062786,0.09367462,232.59,232.51,10.64811359]
[1731870062986,0.09367462,232.57,232.51,10.64811359]
[1731870063191,0.21916462,232.57,232.51,10.64811359]
[1731870064000,4.51906462,232.57,232.51,10.64811359]
[1731870064212,0.09367462,232.55,232.49,10.74982649]
[1731870064393,0.21916462,232.55,232.49,0.1017129]
[1731870064894,0.21916462,232.56,232.49,10.74982649]
[1731870065700,4.3001,232.55,232.49,0.1017129]
[1731870065896,0.12549,232.52,232.49,0.1017129]
[1731870066098,0.21916462,232.5,232.49,0.1017129]
[1731870066824,0.34465462,232.5,232.49,0.1017129]
[1731870067288,0.21916462,232.5,232.49,0.1017129]
[1731870067483,0.25098,232.54,232.49,0.1017129]
[1731870067707,24.2995,232.59,232.49,21.50292649]
[1731870067912,24.2995,232.59,232.49,0.1017129]
[1731870068290,0.09367462,232.58,232.49,0.1017129]
[1731870068994,0.09367462,232.56,232.49,0.1017129]
[1731870069814,0.34465462,232.54,232.49,0.1017129]
[1731870070392,24.12153862,232.52,232.39,15.8175]
[1731870070595,0.34465462,232.5,232.39,15.8175]
[1731870071315,24.12153862,232.5,232.36,10.64811359]
[1731870071901,0.09367462,232.48,232.36,10.64811359]
[1731870072215,0.12549,232.44,232.36,8.14811359]
[1731870072425,0.34465462,232.43,232.34,10.64811359]
[1731870073292,0.34465462,232.43,232.32,10.64811359]
[1731870073994,0.34465462,232.41,232.32,10.64811359]
[1731870074394,0.34465462,232.41,232.34,10.64811359]
[1731870074603,0.21916462,232.41,232.34,10.64811359]
[1731870075399,0.21916462,232.41,232.35,10.64811359]
[1731870075602,0.12549,232.41,232.35,10.64811359]
[1731870076202,4.39657462,232.4,232.35,10.64811359]
[1731870076519,0.12549,232.39,232.35,10.64811359]
[1731870077021,0.12549,232.46,232.37,10.64811359]
[1731870077234,0.25098,232.46,232.37,10.64811359]
[1731870077412,0.09367462,232.45,232.37,10.64811359]
[1731870077729,0.25098,232.46,232.37,10.64811359]
[1731870077730,0.21916462,232.43,232.37,10.64811359]
[1731870078028,4.3021,232.44,232.37,10.64811359]
[1731870078228,4.3018,232.46,232.39,10.64811359]
[1731870078595,4.3018,232.46,232.34,15.064]
[1731870078596,11.2288,232.54,232.41,10.64811359]
[1731870078801,4.3005,232.53,232.41,10.64811359]
[1731870079203,0.09367462,232.52,232.41,10.64811359]
[1731870079699,4.3005,232.53,232.41,10.64811359]
[1731870079900,4.3005,232.53,232.41,10.14811359]
[1731870080127,0.09367462,232.52,232.41,10.14811359]
[1731870080654,0.08886152,232.42,232.41,10.14811359]
[1731870081420,0.08886152,232.42,232.37,6.27]
[1731870081629,0.12549,232.4,232.33,21.40841359]
[1731870082009,0.12549,232.4,232.31,21.00261359]
[1731870082221,0.12549,232.4,232.31,27.43030286]
[1731870082535,0.12549,232.4,232.31,17.07580286]
[1731870082536,0.12549,232.36,232.31,17.07580286]
[1731870082823,4.3038,232.35,232.29,17.07580286]
[1731870084304,0.12549,232.34,232.27,17.07580286]
[1731870085605,4.3042,232.33,232.27,17.07580286]
[1731870086407,0.34465462,232.32,232.26,0.4779129]
[1731870087252,44.12153862,232.32,232.26,0.4779129]
[1731870087528,44.59933862,232.32,232.26,0.4779129]
[1731870087824,0.34465462,232.28,232.26,0.4779129]
[1731870089421,4.55628,232.27,232.26,0.4779129]
[1731870090536,4.64995462,232.27,232.26,0.4779129]
[1731870092809,4.3053,232.27,232.26,0.4779129]
[1731870093117,20.0,232.36,232.26,0.4779129]
[1731870093118,4.3038,232.35,232.26,0.4779129]
[1731870093317,4.3038,232.35,232.26,17.55371576]
[1731870093524,4.3038,232.35,232.28,17.07580286]
[1731870093742,0.09367462,232.34,232.28,17.07580286]
[1731870093922,4.3038,232.35,232.28,17.07580286]
[1731870094112,0.09367462,232.34,232.26,17.55371576]
[1731870094736,15.0597,232.41,232.26,17.55371576]
[1731870095208,0.09367462,232.39,232.26,17.55371576]
[1731870095412,20.0,232.4,232.28,17.07580286]
[1731870095613,20.0,232.4,232.3,17.07580286]
[1731870095922,20.0,232.4,232.28,17.07580286]
[1731870096121,0.09367462,232.39,232.28,17.07580286]
[1731870096433,0.09367462,232.39,232.26,28.31741576]
[1731870096623,0.09367462,232.39,232.26,17.55371576]
[1731870096938,0.21916462,232.39,232.26,17.55371576]
[1731870097242,0.09367462,232.35,232.26,17.55371576]
[1731870097418,0.12549,232.34,232.26,17.55371576]
[1731870097918,0.25098,232.34,232.26,17.55371576]
[1731870098237,0.34465462,232.32,232.26,0.4779129]
[1731870099510,0.34465462,232.3,232.26,0.4779129]
[1731870100328,44.12153862,232.3,232.26,0.4779129]
[1731870100640,0.18189358,232.27,232.26,0.4779129]
[1731870100836,0.43287358,232.27,232.26,0.4779129]
[1731870101415,44.20975758,232.27,232.26,0.4779129]
[1731870101742,24.027864,232.26,232.12,17.07580286]
[1731870102056,24.027864,232.26,232.14,17.07580286]
[1731870102057,0.25098,232.26,232.14,17.07580286]
[1731870103017,0.09367462,232.23,232.14,17.07580286]
[1731870103659,0.09367462,232.23,232.1,15.0795]
[1731870103849,0.09367462,232.23,232.13,17.07580286]
[1731870104515,0.09367462,232.23,232.15,17.07580286]
[1731870104732,0.12549,232.21,232.15,17.07580286]
[1731870105115,0.12549,232.21,232.17,17.07580286]
[1731870105736,4.3066,232.2,232.13,17.07580286]
[1731870107749,4.3066,232.2,232.15,17.07580286]
[1731870108321,4.3066,232.2,232.16,10.68740346]
[1731870110045,4.3066,232.2,232.14,10.68740346]
[1731870110422,4.3059,232.24,232.18,10.68740346]
[1731870110680,4.3056,232.26,232.18,10.68740346]
[1731870110952,4.3056,232.26,232.22,10.68740346]
[1731870111317,0.08821896,232.27,232.22,10.68740346]
[1731870111519,0.08821896,232.27,232.24,10.68740346]
[1731870112736,0.08821896,232.27,232.26,10.68740346]
[1731870114340,0.08821896,232.27,232.26,17.08192355]
[1731870116330,0.08821896,232.27,232.24,17.08192355]
[1731870117134,0.08821896,232.27,232.22,17.08192355]
[1731870117339,4.73817358,232.27,232.19,6.6433]
[1731870118447,4.39351896,232.27,232.19,6.6433]
[1731870118761,0.25098,232.26,232.19,6.6433]
[1731870120155,0.09367462,232.23,232.15,17.08192355]
[1731870120749,0.08370483,232.16,232.15,17.08192355]
[1731870121538,0.08370483,232.16,232.15,17.94321974]
[1731870122061,0.08370483,232.16,232.15,41.72010374]
[1731870122440,0.08370483,232.16,232.15,40.85880755]
[1731870123033,0.08370483,232.16,232.15,60.85880755]
[1731870123453,0.09024608,232.18,232.17,0.1]
[1731870123652,0.09024608,232.18,232.17,78.90165724]
[1731870124147,0.09024608,232.18,232.17,61.81973369]
[1731870125037,0.08494282,232.19,232.18,43.776884]
[1731870125233,0.08494282,232.19,232.18,48.083884]
[1731870125648,0.08494282,232.19,232.18,45.16580755]
[1731870126532,0.08494282,232.19,232.18,17.08192355]
[1731870126739,0.08494282,232.19,232.14,17.08192355]
[1731870127835,0.08494282,232.19,232.14,21.38952355]
[1731870128253,4.39174282,232.19,232.11,10.7703]
[1731870128430,4.39174282,232.19,232.13,17.08192355]
[1731870128841,4.39174282,232.19,232.11,10.7703]
[1731870128842,0.08494282,232.19,232.17,17.08192355]
[1731870129042,4.39174282,232.19,232.15,17.08192355]
[1731870129244,4.39174282,232.19,232.11,10.7703]
[1731870129450,4.39174282,232.19,232.12,17.08192355]
[1731870129648,0.08494282,232.19,232.16,17.08192355]
[1731870130234,0.08494282,232.19,232.14,17.08192355]
[1731870130436,4.73639744,232.19,232.14,17.08192355]
[1731870130854,4.51723282,232.19,232.14,17.08192355]
[1731870131060,0.08494282,232.19,232.11,10.7703]
[1731870131265,0.08494282,232.19,232.16,17.08192355]
[1731870131565,0.08494282,232.19,232.11,10.7703]
[1731870131566,4.39174282,232.19,232.14,17.08192355]
[1731870132248,0.34465462,232.18,232.14,17.08192355]
[1731870132940,4.39174282,232.19,232.14,17.08192355]
[1731870133844,0.08494282,232.19,232.14,17.08192355]
[1731870134045,0.08494282,232.19,232.18,17.08192355]
[1731870135244,0.08494282,232.19,232.18,40.85880755]
[1731870136271,0.08494282,232.19,232.18,28.083884]
[1731870136573,4.39174282,232.19,232.11,10.7704]
[1731870136741,4.39174282,232.19,232.14,10.68327963]
[1731870137769,4.39174282,232.19,232.12,10.68327963]
[1731870137955,4.39174282,232.19,232.14,10.68327963]
[1731870138170,4.39174282,232.19,232.11,10.7704]
[1731870138171,0.08494282,232.19,232.16,10.68327963]
[1731870138847,0.08494282,232.19,232.13,4.3078]
[1731870138848,0.08494282,232.19,232.18,10.68327963]
[1731870139875,0.08494282,232.19,232.16,23.776884]
[1731870140045,0.08494282,232.19,232.18,10.68327963]
[1731870140645,0.165296,232.19,232.17,4.3071]
[1731870140846,0.165296,232.19,232.18,10.68327963]
[1731870141450,0.08035318,232.19,232.18,35.32132535]
[1731870141772,0.08035318,232.19,232.18,56.99542535]
[1731870143071,0.08035318,232.19,232.18,22.53526172]
[1731870143272,0.08035318,232.19,232.18,10.68327963]
[1731870143956,0.08035318,232.19,232.18,10.78327963]
[1731870144154,0.08734006,232.21,232.2,0.1]
[1731870144364,4.3041,232.34,232.23,173.31852773]
[1731870144568,4.3041,232.34,232.23,34.46016363]
[1731870145384,0.1739,232.4,232.23,34.46016363]
[1731870145548,4.3035,232.37,232.24,43.776884]
[1731870145944,7.42177285,232.46,232.27,65.450984]
[1731870146146,0.7373,232.46,232.27,76.13426363]
[1731870146455,4.3028,232.41,232.27,86.82683973]
[1731870146668,4.3024,232.43,232.28,0.1]
[1731870146876,4.3024,232.43,232.36,17.07055573]
[1731870147762,4.39567462,232.45,232.36,17.07055573]
[1731870148076,4.39567462,232.45,232.26,0.2]
[1731870148077,15.157,232.45,232.29,17.07055573]
[1731870148283,24.027864,232.44,232.29,17.07055573]
[1731870148572,0.21916462,232.43,232.29,17.07055573]
[1731870148783,0.09367462,232.39,232.29,17.07055573]
[1731870148976,0.09367462,232.37,232.29,17.07055573]
[1731870149168,4.55458,232.36,232.29,17.07055573]
[1731870150272,0.09367462,232.35,232.29,17.07055573]
[1731870150481,0.34465462,232.33,232.27,17.07055573]
[1731870150853,0.34465462,232.33,232.21,21.6741]
[1731870151049,0.44465462,232.33,232.15,21.6741]
[1731870151252,0.09367462,232.29,232.15,38.74465573]
[1731870151462,0.09367462,232.29,232.15,32.36055573]
[1731870151463,0.09367462,232.27,232.15,32.36055573]
[1731870151881,0.09367462,232.27,232.15,17.07055573]
[1731870152071,0.09367462,232.27,232.17,17.07055573]
[1731870152264,0.09367462,232.27,232.19,17.07055573]
[1731870152474,0.34465462,232.25,232.19,17.07055573]
[1731870152671,4.55618,232.28,232.22,17.07055573]
[1731870152971,0.09367462,232.27,232.2,17.07055573]
[1731870153167,4.55618,232.28,232.2,17.07055573]
[1731870153359,4.55618,232.28,232.22,17.07055573]
[1731870153557,4.55618,232.28,232.2,17.07055573]
[1731870153857,0.25098,232.31,232.22,17.07055573]
[1731870154076,4.3044,232.32,232.24,17.07055573]
[1731870154488,0.09367462,232.35,232.24,17.07055573]
[1731870154789,4.3038,232.35,232.24,17.07055573]
[1731870155179,0.09367462,232.34,232.24,17.07055573]
[1731870155795,0.09367462,232.32,232.24,17.07055573]
[1731870156094,0.34465462,232.32,232.24,17.07055573]
[1731870157071,0.12549,232.32,232.26,17.07055573]
[1731870157294,4.3042,232.33,232.24,15.0705]
[1731870157490,4.3042,232.33,232.26,17.07055573]
[1731870157690,0.25098,232.32,232.26,17.07055573]
[1731870157865,0.09367462,232.31,232.17,4.307]
[1731870158068,0.09367462,232.31,232.22,17.07055573]
[1731870158268,0.09367462,232.31,232.24,17.07055573]
[1731870159076,4.3045,232.31,232.26,17.07055573]
[1731870159289,4.3045,232.31,232.24,17.07055573]
[1731870160379,20.09367462,232.36,232.24,17.07055573]
[1731870160572,0.09367462,232.32,232.24,17.07055573]
[1731870160875,0.09028994,232.25,232.24,17.07055573]
[1731870161077,0.09028994,232.25,232.18,17.07055573]
[1731870161806,0.09028994,232.25,232.2,17.07055573]
[1731870161976,0.09028994,232.25,232.23,17.07055573]
[1731870162302,0.09028994,232.25,232.21,17.07055573]
[1731870162604,0.09028994,232.25,232.19,17.07055573]
[1731870162605,4.39608994,232.25,232.19,17.07055573]
[1731870162982,4.39608994,232.25,232.17,23.776884]
[1731870162983,0.09028994,232.25,232.24,17.07055573]
[1731870163186,0.09028994,232.25,232.22,17.07055573]
[1731870163779,0.09028994,232.25,232.24,17.07055573]
[1731870165084,0.09028994,232.25,232.24,41.7082922]
[1731870166105,0.09028994,232.25,232.24,24.63773647]
[1731870166311,0.09028994,232.25,232.24,40.84743973]
[1731870166684,0.09028994,232.25,232.24,60.84743973]
[1731870166904,0.09028994,232.25,232.24,67.71952973]
[1731870167084,0.09028994,232.25,232.24,67.81952973]
[1731870167284,0.09028994,232.25,232.24,67.71952973]
[1731870167784,0.09028994,232.25,232.24,67.81952973]
[1731870169002,0.09028994,232.25,232.24,6.6466]
[1731870169215,0.09028994,232.25,232.24,23.71715573]
[1731870170406,0.09028994,232.25,232.24,47.49403973]
[1731870171302,0.09028994,232.25,232.24,67.49403973]
[1731870171611,0.09028994,232.25,232.24,67.61952973]
[1731870172409,0.09028994,232.25,232.24,67.49403973]
[1731870173286,0.09028994,232.25,232.24,68.48027937]
[1731870173506,0.08720659,232.26,232.25,48.308074]
[1731870173811,4.3026,232.42,232.29,206.59166474]
[1731870173981,0.00469921,232.34,232.3,0.09367462]
[1731870174178,93.67306778,232.54,232.4,0.1]
[1731870174179,26.76373365,232.54,232.4,0.1]
[1731870174386,10.99063341,232.57,232.52,17.07055573]
[1731870174607,13.38186682,232.58,232.54,17.07055573]
[1731870174608,6.69093341,232.58,232.54,17.07055573]
[1731870174790,6.69093341,232.66,232.57,17.07055573]
[1731870174992,4.2971,232.71,232.63,17.07055573]
[1731870175218,4.2971,232.71,232.61,17.07055573]
[1731870175415,4.2971,232.71,232.59,17.07055573]
[1731870175611,0.09367462,232.7,232.59,17.07055573]
[1731870175910,4.2971,232.71,232.59,17.07055573]
[1731870176890,0.09367462,232.7,232.63,17.07055573]
[1731870177095,4.2971,232.71,232.63,17.07055573]
[1731870177293,0.09367462,232.7,232.63,17.07055573]
[1731870177710,0.09367462,232.7,232.61,17.07055573]
[1731870177909,0.09367462,232.68,232.61,17.07055573]
[1731870178117,4.2975,232.69,232.61,17.07055573]
[1731870178305,4.01666462,232.69,232.61,17.07055573]
[1731870178692,4.01666462,232.69,232.63,17.07055573]
[1731870179913,4.2962,232.76,232.65,17.07055573]
[1731870180323,4.2962,232.76,232.63,17.07055573]
[1731870180503,0.09367462,232.75,232.63,17.07055573]
[1731870180686,0.09367462,232.73,232.61,17.07055573]
[1731870180890,0.09367462,232.73,232.59,17.07055573]
[1731870181518,0.21916462,232.69,232.59,17.07055573]
[1731870181816,20.0,232.74,232.65,17.07055573]
[1731870181996,4.2968,232.73,232.65,17.07055573]
[1731870182394,0.09367462,232.72,232.63,17.07055573]
[1731870183300,0.12549,232.72,232.67,17.07055573]
[1731870183619,4.2968,232.73,232.65,17.07055573]
[1731870183998,15.0362,232.77,232.65,17.07055573]
[1731870184192,0.09367462,232.76,232.65,17.07055573]
[1731870184622,20.09367462,232.74,232.63,17.07055573]
[1731870184928,0.12549,232.71,232.56,24.2998]
[1731870185099,0.09367462,232.7,232.59,17.07055573]
[1731870185997,0.34465462,232.68,232.56,15.0497]
[1731870186318,0.34465462,232.68,232.57,17.07055573]
[1731870186614,0.34465462,232.68,232.59,17.07055573]
[1731870186998,4.2979,232.67,232.59,17.07055573]
[1731870187388,4.2976,232.69,232.63,17.07055573]
[1731870187621,23.902374,232.75,232.63,17.07055573]
[1731870187792,20.0,232.74,232.63,17.07055573]
[1731870188995,0.34465462,232.73,232.63,17.07055573]
[1731870189207,4.64145462,232.73,232.63,17.07055573]
[1731870191207,4.296,232.77,232.67,17.07055573]
[1731870191603,0.09367462,232.76,232.67,17.07055573]
[1731870192197,4.38967462,232.77,232.67,17.07055573]